bitfinex-derivatives/quotes_BNBF0:USTF0_20250908
["timestamp","ask_amount","ask_price","bid_price","bid_amount"]
[1757307616034,2.5557701,876.65,875.53,0.19832959]
[1757307616233,3.21361544,876.64,875.53,0.19832959]
[1757307616533,2.5557701,876.64,875.53,0.19832959]
[1757307617331,1.02220718,876.58,875.53,0.19832959]
[1757307619035,1.53356292,877.01,875.35,1.797]
[1757307619234,0.65723407,877.0,875.35,1.797]
[1757307619433,0.65723407,876.99,875.35,1.797]
[1757307619634,0.65723407,876.98,875.35,1.797]
[1757307619934,0.65723407,876.97,875.35,1.797]
[1757307620131,0.65723407,876.96,875.35,1.797]
[1757307620337,0.65723407,876.95,875.35,1.797]
[1757307620534,0.65723407,876.94,875.35,1.797]
[1757307620836,0.65723407,876.93,875.35,1.797]
[1757307621034,0.65723407,876.92,875.35,1.797]
[1757307621231,0.65723407,876.91,875.35,1.797]
[1757307621536,0.65723407,876.9,875.35,1.797]
[1757307621736,0.65723407,876.89,873.07,2.53029661]
[1757307621936,0.65723407,876.88,873.07,2.53029661]
[1757307622135,0.65723407,876.87,873.07,2.53029661]
[1757307622331,0.65723407,876.86,875.61,0.19821662]
[1757307622535,0.65723407,876.85,875.61,0.19821662]
[1757307622736,0.65723407,876.84,873.1,2.53029661]
[1757307622936,0.65723407,876.83,875.73,0.19834654]
[1757307623236,0.65723407,876.82,873.12,2.53029661]
[1757307623435,0.65723407,876.81,873.1,2.53029661]
[1757307623633,0.65723407,876.8,875.83,0.19834711]
[1757307623833,0.65723407,876.79,875.83,0.19834711]
[1757307624132,0.65723407,876.78,875.83,0.19834711]
[1757307624334,0.65723407,876.77,873.14,2.53029661]
[1757307624534,1.53356292,876.67,873.2,2.53029661]
[1757307624737,0.65723407,876.66,875.92,0.1983488]
[1757307624935,0.65723407,876.65,873.8,2.53029661]
[1757307625235,0.65723407,876.64,874.06,0.19835163]
[1757307625438,0.65723407,876.63,874.06,0.19835163]
[1757307625638,0.65723407,876.62,874.06,0.19835163]
[1757307625834,1.53356292,876.62,874.06,0.19835163]
[1757307627140,1.53356292,876.84,874.06,0.19835163]
[1757307627341,1.53356292,876.81,874.06,0.19835163]
[1757307627540,0.6541922,876.8,874.06,0.19835163]
[1757307627739,0.6541922,876.79,874.06,0.19835163]
[1757307627938,0.6541922,876.78,874.06,0.19835163]
[1757307628139,1.53356292,876.59,874.06,0.19835163]
[1757307628438,1.53356292,876.63,874.06,0.19835163]
[1757307628635,5.08316523,877.98,874.06,0.19835163]
[1757307628636,0.65418196,876.62,874.06,0.19835163]
[1757307628838,0.65418196,876.61,874.06,0.19835163]
[1757307629036,0.65418196,876.6,874.06,0.19835163]
[1757307629336,0.65418196,876.59,874.06,0.19835163]
[1757307629539,0.65418196,876.58,874.06,0.19835163]
[1757307629839,1.53356292,876.55,874.06,0.19835163]
[1757307630040,0.65418196,876.54,874.06,0.19835163]
[1757307630240,0.65418196,876.53,874.06,0.19835163]
[1757307630540,0.65418196,876.52,874.06,0.19835163]
[1757307630740,0.65418196,876.51,874.06,0.19835163]
[1757307630941,0.65418196,876.5,874.06,0.19835163]
[1757307631143,0.65418196,876.49,874.06,0.19835163]
[1757307631441,1.53356292,876.45,874.06,0.19835163]
[1757307631642,0.65418196,876.44,874.06,0.19835163]
[1757307631841,3.53327199,877.58,874.06,0.19835163]
[1757307631842,0.65418196,876.43,874.06,0.19835163]
[1757307632042,0.65418196,876.42,874.06,0.19835163]
[1757307632237,0.65418196,876.41,874.06,0.19835163]
[1757307632438,0.65418196,876.4,874.06,0.19835163]
[1757307632638,2.18774488,876.39,874.06,0.19835163]
[1757307632837,1.53356292,876.36,874.06,0.19835163]
[1757307633141,1.53356292,876.34,874.06,0.19835163]
[1757307633441,0.65418196,876.33,874.64,0.283]
[1757307633641,0.65418196,876.32,874.64,0.283]
[1757307633838,0.65418196,876.32,874.06,0.19835163]
[1757307633839,0.65418196,876.31,874.65,0.5]
[1757307634142,0.65418196,876.3,874.65,0.5]
[1757307634341,0.65418196,876.29,874.65,0.5]
[1757307634541,0.65418196,876.28,874.65,0.5]
[1757307634748,0.65418196,876.27,874.65,0.5]
[1757307635038,0.65418196,876.26,874.65,0.5]
[1757307635241,0.65418196,876.25,874.65,0.5]
[1757307635442,0.65418196,876.24,874.65,0.5]
[1757307635639,0.65418196,876.23,874.65,0.5]
[1757307635844,0.65418196,876.22,874.65,0.5]
[1757307636146,0.65418196,876.21,874.65,0.5]
[1757307636443,0.65418196,876.2,874.65,0.5]
[1757307636644,0.65418196,876.19,874.65,0.5]
[1757307636841,0.65418196,876.18,874.65,0.5]
[1757307637045,0.65418196,876.17,874.65,0.5]
[1757307637340,0.65418196,876.16,874.06,0.19835163]
[1757307637544,0.65418196,876.15,874.06,0.19835163]
[1757307637746,0.65418196,876.14,874.06,0.19835163]
[1757307637944,0.65418196,876.13,874.06,0.19835163]
[1757307638143,0.65418196,876.12,874.06,0.19835163]
[1757307638342,0.65418196,876.11,874.06,0.19835163]
[1757307638545,0.65418196,876.1,874.06,0.19835163]
[1757307638745,0.65418196,876.09,874.06,0.19835163]
[1757307638946,0.65418196,876.08,874.06,0.19835163]
[1757307639246,0.65418196,876.07,874.06,0.19835163]
[1757307639445,0.65418196,876.06,874.06,0.19835163]
[1757307639746,1.53356292,876.48,874.06,0.19835163]
[1757307639945,0.65465931,876.47,874.06,0.19835163]
[1757307640146,0.65465931,876.46,874.06,0.19835163]
[1757307640347,0.65465931,876.45,874.06,0.19835163]
[1757307640544,0.65465931,876.44,874.06,0.19835163]
[1757307640844,0.65465931,876.43,874.06,0.19835163]
[1757307641047,0.65465931,876.42,874.06,0.19835163]
[1757307641246,1.53356292,876.39,874.06,0.19835163]
[1757307641445,0.65465931,876.38,874.65,0.5]
[1757307641645,0.65465931,876.37,874.65,0.5]
[1757307641843,0.65465931,876.36,874.65,0.5]
[1757307642044,0.65465931,876.35,874.65,0.5]
[1757307642249,0.65465931,876.34,874.65,0.5]
[1757307642448,0.65465931,876.33,874.65,0.5]
[1757307642749,0.65465931,876.32,874.65,0.5]
[1757307642952,0.65465931,876.31,874.65,0.5]
[1757307643150,0.65465931,876.3,874.65,0.5]
[1757307643452,1.53356292,876.28,874.65,0.5]
[1757307643652,0.65465931,876.27,874.65,0.5]
[1757307643850,0.65465931,876.26,874.65,0.5]
[1757307644050,0.65465931,876.25,874.65,0.5]
[1757307644248,0.65465931,876.24,874.65,0.5]
[1757307644452,0.65465931,876.23,874.65,0.5]
[1757307644653,0.65465931,876.22,874.65,0.5]
[1757307644849,0.65465931,876.21,874.65,0.5]
[1757307645048,0.65465931,876.2,874.65,0.5]
[1757307645252,0.65465931,876.19,874.06,0.19835163]
[1757307645450,0.65528336,876.18,874.06,0.19835163]
[1757307645753,0.65528336,876.17,874.06,0.19835163]
[1757307646050,0.65528336,876.16,874.06,0.19835163]
[1757307646253,0.65528336,876.15,874.06,0.19835163]
[1757307646551,0.65528336,876.14,874.06,0.19835163]
[1757307646753,0.65528336,876.13,874.06,0.19835163]
[1757307646954,0.65528336,876.12,874.06,0.19835163]
[1757307647154,0.65528336,876.11,874.06,0.19835163]
[1757307647354,0.65528336,876.1,874.06,0.19835163]
[1757307647554,0.65528336,876.09,874.06,0.19835163]
[1757307647753,0.65528336,876.08,874.06,0.19835163]
[1757307647956,0.65528336,876.07,874.06,0.19835163]
[1757307648153,0.65528336,876.06,874.06,0.19835163]
[1757307648352,0.65528336,876.05,874.06,0.19835163]
[1757307648555,1.53356292,876.34,874.06,0.19835163]
[1757307648756,2.1888962,876.33,874.06,0.19835163]
[1757307648953,1.0130953,876.14,874.06,0.19835163]
[1757307649157,0.65533328,876.13,874.06,0.19835163]
[1757307649355,0.65533328,876.12,874.06,0.19835163]
[1757307649553,0.65533328,876.11,874.06,0.19835163]
[1757307649758,0.65533328,876.1,874.3,0.5]
[1757307650058,0.65533328,876.09,874.3,0.5]
[1757307650259,0.65533328,876.08,874.3,0.5]
[1757307650458,0.65533328,876.07,874.3,0.5]
[1757307650659,0.65533328,876.06,874.3,0.5]
[1757307650859,0.65533328,876.05,874.3,0.5]
[1757307651061,1.0130953,876.17,874.3,0.5]
[1757307651257,0.65531923,876.16,874.3,0.5]
[1757307651458,0.65531923,876.15,874.3,0.5]
[1757307651764,0.65531923,876.14,874.3,0.5]
[1757307651961,0.65531923,876.13,874.3,0.5]
[1757307652158,0.65531923,876.12,874.3,0.5]
[1757307652361,2.55394823,877.2,874.3,0.5]
[1757307652362,0.65531923,876.11,874.3,0.5]
[1757307652657,0.65531923,876.1,874.3,0.5]
[1757307652861,0.65531923,876.09,874.3,0.5]
[1757307653058,0.65531923,876.08,874.3,0.5]
[1757307653263,0.65531923,876.07,874.3,0.5]
[1757307653557,0.65531923,876.06,874.3,0.5]
[1757307653762,0.65531923,876.05,874.3,0.5]
[1757307653960,1.0130953,876.17,874.3,0.5]
[1757307654164,1.66841419,876.16,874.3,0.5]
[1757307654363,0.65531889,876.15,874.3,0.5]
[1757307654665,0.65531889,876.14,874.3,0.5]
[1757307654958,0.65531889,876.13,874.3,0.5]
[1757307655161,0.65531889,876.12,874.3,0.5]
[1757307655359,0.65531889,876.11,874.3,0.5]
[1757307655559,0.65531889,876.1,874.3,0.5]
[1757307655762,0.65531889,876.09,874.3,0.5]
[1757307655963,0.65531889,876.08,874.3,0.5]
[1757307656162,0.65531889,876.07,874.3,0.5]
[1757307656359,0.65531889,876.06,874.3,0.5]
[1757307656560,0.65531889,876.05,874.3,0.5]
[1757307656762,1.0130953,876.13,874.3,0.5]
[1757307657064,0.655539,876.12,874.3,0.5]
[1757307657264,0.655539,876.11,874.3,0.5]
[1757307657560,0.655539,876.1,874.3,0.5]
[1757307657761,0.655539,876.09,874.3,0.5]
[1757307657961,0.655539,876.08,874.3,0.5]
[1757307658165,0.655539,876.07,874.3,0.5]
[1757307658365,0.655539,876.06,874.3,0.5]
[1757307658563,0.655539,876.05,874.3,0.5]
[1757307658767,1.0130953,876.11,874.3,0.5]
[1757307658967,1.66888992,876.1,874.3,0.5]
[1757307659162,0.65579462,876.09,874.3,0.5]
[1757307659368,0.65579462,876.08,874.3,0.5]
[1757307659568,0.65579462,876.07,874.3,0.5]
[1757307659864,0.65579462,876.06,874.3,0.5]
[1757307660168,0.65579462,876.05,874.3,0.5]
[1757307660368,1.0130953,876.11,874.3,0.5]
[1757307660568,1.53356292,876.3,874.3,0.5]
[1757307660569,1.0130953,876.05,874.3,0.5]
[1757307661367,1.0130953,876.06,874.3,0.5]
[1757307661665,0.65598747,876.05,874.3,0.5]
[1757307661865,1.0130953,876.06,874.3,0.5]
[1757307662065,0.65599838,876.05,874.3,0.5]
[1757307662266,1.0130953,876.06,874.3,0.5]
[1757307662466,0.65605493,876.05,874.3,0.5]
[1757307662666,1.0130953,876.06,874.3,0.5]
[1757307662867,0.65605506,876.05,874.3,0.5]
[1757307663068,1.0130953,876.06,874.3,0.5]
[1757307663266,0.65611265,876.05,874.3,0.5]
[1757307663468,1.0130953,876.06,874.3,0.5]
[1757307663671,1.53356292,876.23,874.3,0.5]
[1757307663672,0.65611269,876.05,874.3,0.5]
[1757307663972,1.0130953,876.12,874.3,0.5]
[1757307664171,0.65613776,876.11,874.3,0.5]
[1757307664467,0.65613776,876.1,874.3,0.5]
[1757307664671,0.65613776,876.09,874.3,0.5]
[1757307664871,0.65613776,876.08,874.3,0.5]
[1757307665172,0.65613776,876.07,874.3,0.5]
[1757307665472,0.65613776,876.06,874.3,0.5]
[1757307665766,0.65613776,876.05,874.3,0.5]
[1757307665969,1.0130953,876.12,874.3,0.5]
[1757307666172,0.65620175,876.11,874.3,0.5]
[1757307666367,0.65620175,876.1,874.3,0.5]
[1757307666670,0.65620175,876.09,874.3,0.5]
[1757307666868,0.65620175,876.08,874.3,0.5]
[1757307667071,0.65620175,876.07,874.3,0.5]
[1757307667272,0.65620175,876.06,874.3,0.5]
[1757307667568,0.65620175,876.05,874.3,0.5]
[1757307667772,1.0130953,876.11,874.3,0.5]
[1757307667972,0.65640165,876.1,874.3,0.5]
[1757307668269,0.65640165,876.09,874.3,0.5]
[1757307668467,0.65640165,876.08,874.3,0.5]
[1757307668672,0.65640165,876.07,874.3,0.5]
[1757307668870,0.65640165,876.06,874.3,0.5]
[1757307669071,0.65640165,876.05,874.3,0.5]
[1757307669369,1.0130953,876.11,874.3,0.5]
[1757307669574,0.6563759,876.1,874.3,0.5]
[1757307669871,0.6563759,876.09,874.3,0.5]
[1757307670070,0.6563759,876.08,874.3,0.5]
[1757307670373,0.6563759,876.07,874.3,0.5]
[1757307670571,0.6563759,876.06,874.3,0.5]
[1757307670870,1.0130953,876.11,874.3,0.5]
[1757307670871,0.6563759,876.05,874.3,0.5]
[1757307671074,1.0130953,876.12,874.3,0.5]
[1757307671271,1.6694933,876.11,874.3,0.5]
[1757307671470,0.656398,876.1,874.3,0.5]
[1757307671674,0.656398,876.09,874.3,0.5]
[1757307671876,0.656398,876.08,874.3,0.5]
[1757307672071,0.656398,876.07,874.3,0.5]
[1757307672270,0.656398,876.06,874.3,0.5]
[1757307672571,0.656398,876.05,874.3,0.5]
[1757307672775,1.0130953,876.12,874.3,0.5]
[1757307672975,0.65644401,876.11,874.3,0.5]
[1757307673275,0.65644401,876.1,874.31,1.209]
[1757307673574,0.65644401,876.09,874.31,1.209]
[1757307673875,1.66953931,876.08,874.31,1.209]
[1757307674070,0.65644401,876.07,874.31,1.209]
[1757307674270,0.65644401,876.06,874.31,1.209]
[1757307674474,0.65644401,876.05,874.31,1.209]
[1757307674675,1.0130953,876.1,874.31,1.209]
[1757307674872,0.65665903,876.09,874.31,1.209]
[1757307675071,0.65665903,876.08,874.31,1.209]
[1757307675275,0.65665903,876.07,874.31,1.209]
[1757307675574,0.65665903,876.06,874.31,1.209]
[1757307675776,0.65665903,876.05,874.31,1.209]
[1757307675971,1.0130953,876.18,874.31,1.209]
[1757307676172,0.65679304,876.17,874.31,1.209]
[1757307676376,0.65679304,876.16,874.31,1.209]
[1757307676677,0.65679304,876.15,874.31,1.209]
[1757307676876,0.65679304,876.14,874.31,1.209]
[1757307677076,0.65679304,876.13,874.31,1.209]
[1757307677376,0.65679304,876.12,874.31,1.209]
[1757307677576,0.65679304,876.11,874.31,1.209]
[1757307677775,0.65679304,876.1,874.31,1.209]
[1757307678073,0.65679304,876.09,874.31,1.209]
[1757307678276,1.0130953,876.19,874.31,1.209]
[1757307678277,0.65679304,876.08,874.31,1.209]
[1757307678475,0.65679304,876.07,874.31,1.209]
[1757307678776,0.65679304,876.06,874.31,1.209]
[1757307678974,0.65679304,876.05,874.31,1.209]
[1757307679178,1.0130953,876.19,874.31,1.209]
[1757307679474,0.65738732,876.18,874.31,1.209]
[1757307679674,0.65738732,876.17,874.31,1.209]
[1757307679978,0.65738732,876.16,874.31,1.209]
[1757307680177,0.65738732,876.15,874.31,1.209]
[1757307680373,0.65738732,876.14,874.31,1.209]
[1757307680593,0.65738732,876.13,874.31,1.209]
[1757307680778,0.65738732,876.12,874.31,1.209]
[1757307680974,0.65738732,876.11,874.31,1.209]
[1757307681180,0.65738732,876.1,874.31,1.209]
[1757307681378,0.65738732,876.09,874.31,1.209]
[1757307681681,0.65738732,876.08,874.31,1.209]
[1757307681878,0.65738732,876.07,874.31,1.209]
[1757307682078,0.65738732,876.06,874.31,1.209]
[1757307682381,0.65738732,876.05,874.31,1.209]
[1757307682579,1.0130953,876.2,874.31,1.209]
[1757307682779,0.65798613,876.19,874.31,1.209]
[1757307682977,0.65798613,876.18,874.31,1.209]
[1757307683184,0.65798613,876.17,874.31,1.209]
[1757307683480,0.65798613,876.16,874.31,1.209]
[1757307683680,1.0130953,876.2,874.31,1.209]
[1757307683681,0.65798613,876.15,874.31,1.209]
[1757307683882,0.65798613,876.14,874.31,1.209]
[1757307684082,0.65798613,876.13,874.31,1.209]
[1757307684278,1.0130953,876.2,874.31,1.209]
[1757307684279,0.65798613,876.12,874.31,1.209]
[1757307684582,0.65798613,876.11,874.31,1.209]
[1757307684783,0.65798613,876.1,874.31,1.209]
[1757307684982,0.65798613,876.09,874.31,1.209]
[1757307685182,0.65798613,876.08,874.31,1.209]
[1757307685481,0.65798613,876.07,874.31,1.209]
[1757307685679,0.65798613,876.06,874.31,1.209]
[1757307685880,0.65798613,876.05,874.31,1.209]
[1757307686081,1.0130953,876.08,874.31,1.209]
[1757307686381,0.6591555,876.07,874.31,1.209]
[1757307686582,0.6591555,876.06,874.31,1.209]
[1757307686784,0.6591555,876.05,874.31,1.209]
[1757307686982,1.0130953,876.08,874.31,1.209]
[1757307687179,2.55394823,876.91,874.31,1.209]
[1757307687180,1.67227487,876.07,874.31,1.209]
[1757307687379,0.65917957,876.06,874.31,1.209]
[1757307687682,0.65917957,876.05,874.31,1.209]
[1757307687883,1.0130953,876.07,874.31,1.209]
[1757307688179,1.0130953,876.05,874.31,1.209]
[1757307690283,1.0130953,876.17,874.31,1.209]
[1757307690484,1.0130953,876.08,874.31,1.209]
[1757307691286,1.0130953,876.05,874.31,1.209]
[1757307692187,1.0130953,876.02,874.31,1.209]
[1757307693188,1.0130953,876.01,874.31,1.209]
[1757307694188,1.0130953,876.03,874.31,1.209]
[1757307696390,1.0130953,876.04,874.31,1.209]
[1757307696586,1.0130953,876.02,874.31,1.209]
[1757307696990,1.0130953,876.01,874.31,1.209]
[1757307697793,1.0130953,876.02,874.31,1.209]
[1757307697992,1.0130953,875.94,874.31,1.209]
[1757307698190,1.0130953,875.95,874.31,1.209]
[1757307699289,1.0130953,875.96,874.31,1.209]
[1757307699494,1.0130953,875.89,874.31,1.209]
[1757307699693,1.0130953,875.86,874.31,1.209]
[1757307699989,0.66863263,875.85,874.31,1.209]
[1757307700295,0.66863263,875.84,874.31,1.209]
[1757307700494,0.66863263,875.83,874.31,1.209]
[1757307700790,0.66863263,875.82,874.31,1.209]
[1757307700993,0.66863263,875.81,874.31,1.209]
[1757307701190,0.66863263,875.8,874.31,1.209]
[1757307701489,0.66863263,875.79,874.31,1.209]
[1757307701689,0.66863263,875.78,874.31,1.209]
[1757307701990,0.66863263,875.77,874.31,1.209]
[1757307702290,0.66863263,875.76,874.31,1.209]
[1757307702491,0.66863263,875.75,874.31,1.209]
[1757307702697,0.66863263,875.74,874.31,1.209]
[1757307702890,1.0130953,875.96,874.31,1.209]
[1757307703095,0.66787225,875.95,874.31,1.209]
[1757307703297,0.66787225,875.94,874.31,1.209]
[1757307703504,0.66787225,875.93,874.31,1.209]
[1757307703792,0.66787225,875.92,874.31,1.209]
[1757307703997,0.66787225,875.91,874.31,1.209]
[1757307704293,0.66787225,875.9,874.31,1.209]
[1757307704498,0.66787225,875.89,874.31,1.209]
[1757307704797,0.66787225,875.88,874.31,1.209]
[1757307704998,0.66787225,875.87,874.31,1.209]
[1757307705198,0.66787225,875.86,874.31,1.209]
[1757307705398,0.66787225,875.85,874.31,1.209]
[1757307705698,0.66787225,875.84,874.31,1.209]
[1757307705900,0.66787225,875.83,874.31,1.209]
[1757307706100,0.66787225,875.82,874.31,1.209]
[1757307706300,0.66787225,875.81,874.31,1.209]
[1757307706594,0.66787225,875.8,874.31,1.209]
[1757307706794,0.66787225,875.79,874.31,1.209]
[1757307706994,0.66787225,875.78,874.31,1.209]
[1757307707198,0.66787225,875.77,874.31,1.209]
[1757307707400,0.66787225,875.76,874.31,1.209]
[1757307707695,1.0130953,875.68,874.31,1.209]
[1757307707898,0.66787225,875.67,874.31,1.209]
[1757307708098,0.66787225,875.66,874.31,1.209]
[1757307708394,0.66787225,875.65,874.31,1.209]
[1757307708598,0.66787225,875.64,874.31,1.209]
[1757307708901,0.66787225,875.63,874.31,1.209]
[1757307709098,0.66787225,875.62,874.31,1.209]
[1757307709296,0.66787225,875.61,874.31,1.209]
[1757307709599,0.66787225,875.6,874.31,1.209]
[1757307709798,0.66787225,875.59,874.31,1.209]
[1757307709996,0.66787225,875.58,874.31,1.209]
[1757307710200,0.66787225,875.57,874.31,1.209]
[1757307710495,0.66787225,875.56,874.06,0.19835163]
[1757307710800,1.0130953,875.75,874.06,0.19835163]
[1757307711008,0.66908555,875.74,874.06,0.19835163]
[1757307711204,0.66908555,875.73,874.06,0.19835163]
[1757307711402,0.66908555,875.72,874.06,0.19835163]
[1757307711606,0.66908555,875.71,874.06,0.19835163]
[1757307711804,0.66908555,875.7,874.06,0.19835163]
[1757307712005,0.66908555,875.69,874.06,0.19835163]
[1757307712205,0.66908555,875.68,874.06,0.19835163]
[1757307712505,0.66908555,875.67,874.06,0.19835163]
[1757307712704,0.66908555,875.66,874.06,0.19835163]
[1757307712905,0.66908555,875.65,874.07,1.373]
[1757307713105,0.66908555,875.64,874.07,1.373]
[1757307713304,0.66908555,875.63,874.07,1.373]
[1757307713606,0.66908555,875.62,874.07,1.373]
[1757307713809,0.66908555,875.61,874.07,1.373]
[1757307714009,0.66908555,875.6,874.07,1.373]
[1757307714209,0.66908555,875.59,874.07,1.373]
[1757307714404,0.66908555,875.58,874.07,1.373]
[1757307714606,0.66908555,875.57,874.07,1.373]
[1757307714809,0.66908555,875.56,874.07,1.373]
[1757307715006,0.66908555,875.55,874.07,1.373]
[1757307715204,0.66908555,875.54,874.07,1.373]
[1757307715406,0.66908555,875.53,874.07,1.373]
[1757307715610,0.66908555,875.52,874.07,1.373]
[1757307715905,0.66908555,875.51,874.07,1.373]
[1757307716110,1.0130953,875.74,874.07,1.373]
[1757307716310,1.68110086,875.73,874.07,1.373]
[1757307716605,0.66800556,875.72,874.07,1.373]
[1757307716807,1.0130953,875.73,874.07,1.373]
[1757307716808,0.66800556,875.71,874.07,1.373]
[1757307717011,0.66800556,875.7,874.07,1.373]
[1757307717212,1.0130953,875.68,874.07,1.373]
[1757307717413,0.66800556,875.67,874.07,1.373]
[1757307717610,0.66800556,875.66,874.07,1.373]
[1757307717810,0.66800556,875.65,874.07,1.373]
[1757307718111,0.66800556,875.64,874.07,1.373]
[1757307718310,0.66800556,875.63,874.07,1.373]
[1757307718510,0.66800556,875.62,874.07,1.373]
[1757307718710,0.66800556,875.61,874.07,1.373]
[1757307719006,0.66800556,875.6,874.07,1.373]
[1757307719207,1.0130953,875.67,874.07,1.373]
[1757307719208,0.66800556,875.59,874.07,1.373]
[1757307719406,0.66800556,875.58,874.07,1.373]
[1757307719605,0.66800556,875.57,874.07,1.373]
[1757307719807,0.66800556,875.56,874.07,1.373]
[1757307720010,0.66800556,875.55,874.07,1.373]
[1757307720205,0.66800556,875.54,874.07,1.373]
[1757307720408,0.66800556,875.53,874.07,1.373]
[1757307720607,0.66800556,875.52,874.07,1.373]
[1757307720907,0.66800556,875.51,874.07,1.373]
[1757307721108,1.0130953,875.66,874.07,1.373]
[1757307721308,1.68078878,875.65,874.07,1.373]
[1757307721512,0.66769348,875.64,874.07,1.373]
[1757307721712,0.66769348,875.63,874.07,1.373]
[1757307721914,0.66769348,875.62,874.07,1.373]
[1757307722114,0.66769348,875.61,874.07,1.373]
[1757307722315,0.66769348,875.6,874.07,1.373]
[1757307722517,0.66769348,875.59,874.07,1.373]
[1757307722816,1.0130953,875.51,874.07,1.373]
[1757307723517,0.66759581,875.5,874.07,1.373]
[1757307723714,0.66759581,875.49,874.07,1.373]
[1757307724014,0.66759581,875.48,874.07,1.373]
[1757307724217,1.0130953,875.58,874.07,1.373]
[1757307724416,0.66748615,875.57,874.07,1.373]
[1757307724618,0.66748615,875.56,874.07,1.373]
[1757307724918,0.66748615,875.55,874.07,1.373]
[1757307725117,0.66748615,875.54,874.07,1.373]
[1757307725315,0.66748615,875.53,874.07,1.373]
[1757307725515,0.66748615,875.52,874.07,1.373]
[1757307725718,0.66748615,875.51,874.07,1.373]
[1757307725917,0.66748615,875.5,874.07,1.373]
[1757307726216,0.66748615,875.49,874.07,1.373]
[1757307726417,0.66748615,875.48,874.07,1.373]
[1757307726615,1.0130953,875.58,874.07,1.373]
[1757307726920,0.66735891,875.57,874.07,1.373]
[1757307727120,0.66735891,875.56,874.07,1.373]
[1757307727319,0.66735891,875.55,874.07,1.373]
[1757307727519,0.66735891,875.54,874.07,1.373]
[1757307727714,0.66735891,875.53,874.07,1.373]
[1757307727916,0.66735891,875.52,874.07,1.373]
[1757307728115,0.66735891,875.51,874.07,1.373]
[1757307728319,0.66735891,875.5,874.07,1.373]
[1757307728519,0.66735891,875.49,874.07,1.373]
[1757307728717,0.66735891,875.48,874.07,1.373]
[1757307728921,1.0130953,875.58,874.07,1.373]
[1757307729218,0.66727482,875.57,874.07,1.373]
[1757307729421,0.66727482,875.56,874.07,1.373]
[1757307729620,0.66727482,875.55,874.07,1.373]
[1757307729917,0.66727482,875.54,874.07,1.373]
[1757307730217,0.66727482,875.53,874.07,1.373]
[1757307730422,0.66727482,875.52,874.07,1.373]
[1757307730616,0.66727482,875.51,874.07,1.373]
[1757307730818,0.66727482,875.5,874.07,1.373]
[1757307731020,0.66727482,875.49,874.07,1.373]
[1757307731216,0.66727482,875.48,874.07,1.373]
[1757307731417,0.66727482,875.47,874.07,1.373]
[1757307731722,0.66727482,875.46,874.07,1.373]
[1757307731922,0.66727482,875.45,874.07,1.373]
[1757307732122,0.66727482,875.44,874.07,1.373]
[1757307732319,1.0130953,875.55,874.07,1.373]
[1757307732518,0.66731492,875.54,874.07,1.373]
[1757307732720,0.66731492,875.53,874.07,1.373]
[1757307732923,0.66731492,875.52,874.07,1.373]
[1757307733224,0.66731492,875.51,874.07,1.373]
[1757307733525,1.0130953,875.45,874.07,1.373]
[1757307733721,0.66731492,875.44,874.07,1.373]
[1757307734024,1.0130953,875.45,874.07,1.373]
[1757307734226,1.68039847,875.44,874.07,1.373]
[1757307734421,1.0130953,875.45,874.07,1.373]
[1757307735026,1.0130953,875.46,874.07,1.373]
[1757307735321,1.0130953,875.47,874.07,1.373]
[1757307735625,0.66733067,875.46,874.07,1.373]
[1757307735826,1.0130953,875.47,874.07,1.373]
[1757307736022,0.66733114,875.46,874.07,1.373]
[1757307736234,1.0130953,875.48,874.07,1.373]
[1757307736421,0.66735651,875.47,874.07,1.373]
[1757307736622,0.66735651,875.46,874.07,1.373]
[1757307736822,1.0130953,875.47,874.07,1.373]
[1757307737028,0.66737016,875.46,874.07,1.373]
[1757307737330,1.0130953,875.47,874.07,1.373]